bitfinex/quotes_SOLUSD_20240718
["timestamp","ask_amount","ask_price","bid_price","bid_amount"]
[1721321208285,6.3447,157.62,157.55,6.3471]
[1721321208466,34.87,157.63,157.53,15.8694]
[1721321208666,6.63622679,157.61,157.53,15.8694]
[1721321209173,6.346,157.58,157.53,15.8694]
[1721321209362,6.3457,157.59,157.53,22.2173]
[1721321209765,45.0,157.58,157.53,22.2173]
[1721321210388,51.346,157.58,157.53,15.8694]
[1721321210718,45.0,157.58,157.49,16.3565]
[1721321210984,6.3472,157.55,157.49,22.7059]
[1721321211354,6.3472,157.55,157.5,6.3491]
[1721321212659,6.3464,157.57,157.51,6.3487]
[1721321212895,45.0,157.58,157.53,6.3477]
[1721321213188,45.0,157.58,157.54,6.3475]
[1721321213356,45.0,157.59,157.54,6.3475]
[1721321213553,6.1013,157.6,157.55,6.347]
[1721321213753,12.4465,157.6,157.55,6.347]
[1721321213984,12.4465,157.6,157.54,22.2161]
[1721321214900,6.346,157.58,157.52,6.3482]
[1721321215271,6.3464,157.57,157.51,22.2203]
[1721321216695,6.3465,157.57,157.51,22.2202]
[1721321216878,6.3464,157.57,157.51,6.3487]
[1721321220404,76.0,157.59,157.5,20.8825]
[1721321220704,6.3463,157.57,157.5,22.15221969]
[1721321220910,6.63432234,157.58,157.53,6.3477]
[1721321221113,37.3456,157.59,157.52,15.8706]
[1721321221407,31.0,157.59,157.54,6.3475]
[1721321221878,31.0,157.59,157.52,31.5599]
[1721321222088,6.3464,157.57,157.52,37.9082]
[1721321222288,6.346,157.58,157.53,7.61747886]
[1721321222591,6.346,157.58,157.52,37.9081]
[1721321223286,6.346,157.58,157.53,6.3479]
[1721321223482,37.3457,157.59,157.54,6.3474]
[1721321223818,31.0,157.59,157.52,32.82931965]
[1721321224193,37.3457,157.59,157.53,6.3479]
[1721321225591,6.3466,157.57,157.52,31.5599]
[1721321226418,31.0,157.56,157.5,5.01]
[1721321226712,51.3474,157.55,157.5,5.01]
[1721321226888,6.3476,157.54,157.5,5.01]
[1721321227989,51.3472,157.55,157.5,5.01]
[1721321228183,31.0,157.56,157.5,5.01]
[1721321228399,31.0,157.56,157.5,20.8827]
[1721321228602,31.0,157.56,157.51,6.3484]
[1721321228783,6.3466,157.57,157.51,6.3484]
[1721321229179,6.346,157.58,157.52,7.61771467]
[1721321229795,31.0,157.59,157.5,20.8827]
[1721321230026,6.3467,157.57,157.51,6.3486]
[1721321230239,6.3467,157.56,157.51,6.3486]
[1721321230405,6.3467,157.56,157.5,27.2317]
[1721321231097,31.0,157.59,157.5,5.01]
[1721321231298,31.0,157.59,157.5,6.27954858]
[1721321231497,31.0,157.59,157.51,15.8712]
[1721321231736,6.3461,157.58,157.52,1.26947981]
[1721321232211,31.0,157.59,157.53,6.3477]
[1721321232418,37.3456,157.59,157.53,7.61710158]
[1721321232615,37.3456,157.59,157.53,6.3477]
[1721321232814,6.3461,157.58,157.52,6.3482]
[1721321233011,6.3461,157.58,157.53,6.3479]
[1721321233528,6.3461,157.58,157.54,1.2693908]
[1721321233729,37.3457,157.59,157.54,1.2693908]
[1721321234907,31.0,157.62,157.55,1.26939134]
[1721321235224,45.0,157.61,157.55,1.26939134]
[1721321235431,6.3454,157.6,157.54,6.3474]
[1721321235606,45.0,157.61,157.53,15.8694]
[1721321235805,6.3458,157.59,157.53,22.217]
[1721321238410,6.3458,157.59,157.54,6.3475]
[1721321238812,6.3461,157.58,157.53,15.8694]
[1721321239117,6.3477,157.54,157.5,5.01]
[1721321240224,12.97958876,157.57,157.5,11.3588]
[1721321240527,6.347,157.56,157.5,11.3588]
[1721321240826,31.0,157.57,157.5,5.01]
[1721321240827,6.3477,157.54,157.5,5.01]
[1721321241556,6.3473,157.55,157.5,11.359]
[1721321241702,6.3473,157.55,157.5,5.01]
[1721321241907,6.3476,157.54,157.5,5.01]
[1721321242213,6.348,157.53,157.5,5.01]
[1721321243339,31.0,157.54,157.5,5.01]
[1721321243515,6.3484,157.52,157.5,5.01]
[1721321243713,6.3481,157.53,157.5,5.01]
[1721321244537,37.3476,157.54,157.5,5.01]
[1721321244838,45.0,157.53,157.5,5.01]
[1721321245839,31.0,157.54,157.5,11.3591]
[1721321246310,37.3465,157.57,157.51,6.3486]
[1721321246516,6.3468,157.56,157.5,27.2316]
[1721321246813,31.0,157.57,157.5,5.01]
[1721321247026,6.3481,157.53,157.5,5.01]
[1721321247216,6.3484,157.52,157.5,5.01]
[1721321248937,31.0,157.52,157.5,5.01]
[1721321249148,6.63308569,157.6,157.5,5.01]
[1721321249431,6.63308569,157.6,157.53,15.8693]
[1721321249432,31.0,157.59,157.53,15.8693]
[1721321249608,6.3463,157.57,157.52,6.348]
[1721321249811,31.0,157.59,157.5,37.496]
[1721321250010,6.3464,157.57,157.51,6.3484]
[1721321250211,31.0,157.59,157.5,37.496]
[1721321250546,51.346,157.58,157.52,6.3483]
[1721321251518,31.0,157.59,157.53,6.3479]
[1721321251719,37.3456,157.59,157.53,6.3479]
[1721321251922,31.0,157.59,157.54,6.3475]
[1721321252119,31.0,157.59,157.53,6.3478]
[1721321252542,37.3458,157.59,157.53,6.3478]
[1721321252844,45.0,157.58,157.53,6.3478]
[1721321253410,6.3452,157.6,157.54,6.3474]
[1721321253719,45.0,157.59,157.54,6.3474]
[1721321254334,31.0,157.62,157.54,15.8685]
[1721321254638,6.3448,157.61,157.55,7.61652463]
[1721321254848,6.3448,157.61,157.55,6.3471]
[1721321256928,37.3443,157.62,157.55,1.2692785]
[1721321257141,6.3443,157.62,157.56,6.3464]
[1721321257342,6.344,157.63,157.57,6.346]
[1721321257853,6.344,157.63,157.58,6.3459]
[1721321258226,53.5612,157.65,157.58,6.3459]
[1721321258227,6.3436,157.64,157.58,6.3459]
[1721321258429,6.3436,157.64,157.59,6.3455]
[1721321258943,6.3431,157.65,157.6,6.3451]
[1721321259643,37.3426,157.67,157.58,23.29282879]
[1721321259935,6.3427,157.66,157.58,23.29282879]
[1721321260453,6.3427,157.66,157.6,6.3451]
[1721321260658,31.0,157.67,157.6,15.8622]
[1721321260659,6.3433,157.65,157.6,15.8622]
[1721321260831,6.3433,157.65,157.6,22.2073]
[1721321261521,6.3433,157.65,157.6,15.8622]
[1721321262724,6.3428,157.66,157.6,22.2072]
[1721321262952,31.0,157.67,157.62,6.3443]
[1721321263156,37.3426,157.67,157.61,6.3447]
[1721321264465,6.3428,157.66,157.61,6.3447]
[1721321264957,6.3432,157.65,157.6,15.8622]
[1721321265124,6.3435,157.64,157.6,15.8622]
[1721321265329,51.344,157.63,157.57,37.4015]
[1721321265559,6.3443,157.62,157.57,37.4015]
[1721321265858,51.344,157.63,157.57,37.4015]
[1721321266228,6.3444,157.62,157.57,37.4015]
[1721321266965,51.344,157.63,157.57,37.4015]
[1721321268060,6.3444,157.62,157.57,31.0555]
[1721321268250,6.3447,157.61,157.57,15.1901]
[1721321268553,6.3444,157.62,157.57,15.1901]
[1721321268865,45.05389224,157.69,157.57,15.1901]
[1721321269153,6.3433,157.65,157.58,15.8645]
[1721321269358,6.3433,157.65,157.59,6.3452]
[1721321269648,31.0,157.66,157.58,22.2103]
[1721321270543,6.3434,157.65,157.59,6.3455]
[1721321270856,6.3436,157.64,157.59,6.3455]
[1721321271360,6.3436,157.64,157.58,15.8645]
[1721321271361,6.3436,157.64,157.58,22.2104]
[1721321271728,6.344,157.63,157.58,22.2104]
[1721321271934,6.344,157.63,157.58,15.8645]
[1721321272757,6.3445,157.62,157.57,15.1901]
[1721321273062,6.3448,157.61,157.57,15.1901]
[1721321274069,82.3444,157.62,157.57,15.1901]
[1721321274434,76.0,157.62,157.57,21.5363]
[1721321274643,37.3444,157.62,157.57,15.1901]
[1721321275858,6.3448,157.61,157.57,15.1901]
[1721321281049,6.3453,157.6,157.55,15.8676]
[1721321281249,6.3456,157.59,157.54,6.1146]
[1721321281466,45.0,157.59,157.54,6.1146]
[1721321281647,45.0,157.59,157.54,12.4621]
[1721321281848,51.3457,157.59,157.53,22.5454]
[1721321282057,45.0,157.59,157.54,6.3475]
[1721321282258,31.0,157.61,157.55,1.26942371]
[1721321282463,31.0,157.61,157.56,6.3467]
[1721321283080,37.61244044,157.65,157.56,22.2216]
[1721321283277,37.3432,157.65,157.56,6.355]
[1721321283450,37.3432,157.65,157.59,6.3452]
[1721321283778,6.3437,157.64,157.58,22.21]
[1721321283942,6.3437,157.64,157.59,6.3455]
[1721321284149,6.3437,157.64,157.58,22.21]
[1721321285460,6.3437,157.64,157.59,6.3455]
[1721321285671,31.0,157.65,157.58,15.8642]
[1721321285980,6.3428,157.66,157.6,15.8626]
[1721321286144,6.3435,157.64,157.6,15.8626]
[1721321286474,37.60762181,157.68,157.59,22.2708]
[1721321286671,6.3436,157.64,157.59,15.9254]
[1721321287065,6.344,157.63,157.59,15.9254]
[1721321287650,6.3436,157.64,157.59,15.9254]
[1721321287971,6.3436,157.64,157.59,22.2709]
[1721321288469,6.3432,157.65,157.6,6.3451]
[1721321288967,6.343,157.66,157.6,6.3451]
[1721321289173,31.0,157.67,157.61,6.3446]
[1721321289466,37.60762181,157.68,157.61,6.3446]
[1721321289686,51.3424,157.67,157.61,6.3446]
[1721321290285,6.3432,157.65,157.59,31.7889]
[1721321290464,6.3432,157.65,157.59,38.1343]
[1721321290665,6.3432,157.65,157.6,6.3451]
[1721321291765,6.3432,157.65,157.59,38.1344]
[1721321292168,15.49,157.61,157.59,38.1344]
[1721321293696,15.49,157.6,157.57,6.346]
[1721321293866,15.49,157.59,157.57,6.346]
[1721321294968,6.3435,157.65,157.59,6.3453]
[1721321295169,28.9161,157.69,157.64,6.3435]
[1721321295478,15.49,157.65,157.63,6.3436]
[1721321298292,6.3416,157.69,157.64,6.3434]
[1721321300981,43.72581784,157.73,157.65,7.83660562]
[1721321300982,6.62091784,157.73,157.65,7.83660562]
[1721321301183,291.06,157.75,157.66,15.8562]
[1721321301382,7.1520074,157.72,157.66,15.8562]
[1721321302080,7.1520074,157.72,157.66,22.1988]
[1721321302787,6.3411,157.7,157.65,6.343]
[1721321302992,6.3411,157.7,157.64,6.3434]
[1721321303507,6.3411,157.7,157.65,6.343]
[1721321303672,45.0,157.71,157.65,6.343]
[1721321303673,51.3408,157.71,157.65,6.343]
[1721321304091,31.7715074,157.72,157.67,6.3419]
[1721321304281,31.7715074,157.72,157.66,6.3426]
[1721321304282,7.1521074,157.72,157.66,6.3426]
[1721321304990,0.8115074,157.72,157.65,22.2003]
[1721321305376,7.1519074,157.72,157.67,6.3423]
[1721321306192,0.8115074,157.72,157.67,6.3423]
[1721321306615,45.8115074,157.72,157.67,6.3423]
[1721321307610,52.1518074,157.72,157.67,6.3423]
[1721321307987,52.1518074,157.72,157.66,6.3426]
[1721321308187,0.8115074,157.72,157.66,1.26837803]
[1721321308387,0.8115074,157.72,157.67,6.342]
[1721321311190,7.1518074,157.72,157.67,6.342]
[1721321312604,0.8115074,157.72,157.68,22.4491]
[1721321315015,0.8115074,157.72,157.69,6.3412]
[1721321315711,0.8115074,157.72,157.68,22.449]
[1721321315916,0.8115074,157.72,157.68,6.3418]
[1721321316123,7.1520074,157.72,157.67,22.1978]
[1721321316309,45.0,157.71,157.67,15.8556]
[1721321316615,31.7715074,157.72,157.64,16.4511]
[1721321316804,0.8115074,157.72,157.66,1.26846674]
[1721321317115,0.8115074,157.72,157.69,6.3413]
[1721321317505,0.8115074,157.72,157.7,6.341]
[1721321317890,0.8115074,157.72,157.71,6.3407]
[1721321318298,0.8115074,157.72,157.71,7.6086524]
[1721321318503,0.8115074,157.72,157.71,6.3407]
[1721321319222,0.8115074,157.72,157.71,21.7256]
[1721321320427,0.8115074,157.72,157.71,68.8893]
[1721321320992,260.1,157.8,157.75,6.3387]
[1721321321202,15.46,157.79,157.76,6.3383]
[1721321321824,15.46,157.77,157.75,6.3388]
[1721321322024,15.46,157.76,157.71,37.3665]
[1721321322318,14.96,157.74,157.71,31.2361]
[1721321322524,6.3382,157.78,157.72,6.34]
[1721321322728,15.46,157.75,157.72,6.34]
[1721321323216,266.72298227,157.8,157.71,31.2361]
[1721321323424,15.46,157.75,157.74,6.3391]
[1721321323620,273.06018227,157.8,157.74,6.3391]
[1721321323824,15.46,157.76,157.74,6.3391]
[1721321324126,15.46,157.76,157.75,6.3391]
[1721321324293,15.46,157.77,157.75,6.3391]
[1721321324499,15.46,157.77,157.74,6.3394]
[1721321324821,6.3375,157.79,157.74,6.3394]
[1721321325024,15.46,157.76,157.74,6.3394]
[1721321325193,15.46,157.77,157.74,6.3394]
[1721321325400,273.06038227,157.8,157.75,6.339]
[1721321325607,15.46,157.77,157.75,6.339]
[1721321326623,15.46,157.77,157.74,6.3394]
[1721321329121,6.3375,157.79,157.74,6.3394]
[1721321329329,266.72298227,157.8,157.75,6.339]
[1721321329507,15.46,157.78,157.75,6.339]
[1721321329840,15.46,157.77,157.75,6.339]
[1721321330710,15.46,157.76,157.71,15.3849]
[1721321330912,6.3387,157.76,157.7,22.1932]
[1721321331121,15.46,157.72,157.7,22.1932]
[1721321331805,15.46,157.72,157.71,6.3407]
[1721321332123,15.46,157.72,157.7,22.1932]
[1721321332705,15.46,157.71,157.69,6.3415]
[1721321333101,15.46,157.7,157.67,22.3216]
[1721321333301,15.46,157.68,157.63,21.7821]
[1721321333629,15.8461,157.77,157.66,22.1988]
[1721321333928,15.46,157.67,157.66,22.1988]
[1721321334431,15.46,157.68,157.66,22.1988]
[1721321334595,15.46,157.68,157.66,15.8564]
[1721321334798,15.46,157.68,157.66,22.199]
[1721321335100,6.34,157.73,157.67,6.3422]
[1721321335317,15.46,157.69,157.67,6.3422]
[1721321335599,15.46,157.69,157.66,15.8564]
[1721321335803,15.46,157.69,157.63,37.2421]
[1721321335804,15.46,157.69,157.68,22.1962]
[1721321336230,15.46,157.69,157.68,15.8544]
[1721321336418,15.46,157.69,157.66,6.3423]
[1721321336617,15.46,157.68,157.66,6.3423]
[1721321338231,15.46,157.67,157.65,15.8572]
[1721321338428,15.46,157.66,157.63,15.2092]
[1721321338607,15.46,157.65,157.63,6.3438]
[1721321338812,15.46,157.65,157.62,22.2045]
[1721321339003,15.46,157.65,157.63,6.3439]
[1721321339411,15.46,157.65,157.62,15.8603]
[1721321339611,15.46,157.65,157.64,6.3435]
[1721321340225,15.46,157.65,157.62,15.8603]
[1721321340531,15.46,157.66,157.64,15.8585]
[1721321340731,15.46,157.67,157.64,22.202]
[1721321340922,15.46,157.66,157.64,22.202]
[1721321341133,6.0701,157.72,157.64,15.8585]
[1721321341308,16.6606,157.74,157.67,15.8556]
[1721321341506,6.2711,157.76,157.71,6.3405]
[1721321341835,6.3391,157.75,157.69,15.853]
[1721321342137,12.6099,157.76,157.7,6.341]
[1721321342306,12.6099,157.76,157.69,15.853]
[1721321342621,12.6099,157.76,157.69,22.1945]
[1721321342622,15.46,157.72,157.69,22.1945]
[1721321342834,15.46,157.72,157.69,15.853]
[1721321343024,15.46,157.72,157.7,6.3411]
[1721321343204,12.96145487,157.78,157.72,6.3403]
[1721321343410,6.3384,157.77,157.71,22.1922]
[1721321343604,15.46,157.73,157.71,22.1922]
[1721321343809,15.46,157.73,157.72,6.3403]
[1721321344425,6.3384,157.77,157.72,6.3403]
[1721321345035,6.3379,157.79,157.73,6.3398]
[1721321345209,6.3379,157.79,157.71,15.8515]
[1721321345411,15.46,157.76,157.73,6.3398]
[1721321345911,12.93635506,157.8,157.67,21.6852]
[1721321346242,15.46,157.72,157.7,6.3411]
[1721321346421,6.339,157.76,157.7,6.3411]
[1721321346734,15.46,157.73,157.7,6.3411]
[1721321346942,15.46,157.73,157.69,6.3415]
[1721321347716,15.46,157.73,157.68,22.1965]
[1721321347925,15.46,157.71,157.68,22.1965]
[1721321348126,6.3388,157.76,157.7,6.3408]
[1721321348445,15.46,157.74,157.72,6.3399]
[1721321348734,6.3387,157.76,157.7,22.193]
[1721321348939,15.46,157.73,157.7,22.193]
[1721321349131,15.46,157.73,157.71,6.3406]
[1721321349733,15.46,157.72,157.69,6.3412]
[1721321349929,15.46,157.72,157.67,53.0006]
[1721321350243,15.46,157.73,157.7,6.3411]
[1721321350632,15.46,157.74,157.71,6.3406]
[1721321350929,15.46,157.75,157.73,6.3397]
[1721321351139,15.46,157.75,157.72,6.3403]
[1721321351446,15.46,157.75,157.72,6.3402]
[1721321352821,19.27375506,157.8,157.73,15.8491]
[1721321353024,15.46,157.77,157.76,6.3384]
[1721321353554,15.46,157.79,157.76,6.3384]
[1721321353751,6.61865506,157.8,157.77,6.3382]
[1721321353931,15.46,157.78,157.75,15.8473]
[1721321355025,15.46,157.79,157.75,22.1863]
[1721321355226,15.46,157.79,157.76,6.3386]
[1721321355726,15.46,157.79,157.77,6.3382]
[1721321355926,15.46,157.79,157.75,22.186]
[1721321356559,15.46,157.78,157.75,15.8473]
[1721321356743,15.46,157.78,157.75,22.1864]
[1721321358355,15.46,157.76,157.74,6.3394]
[1721321358733,6.61865506,157.8,157.75,6.3391]
[1721321359039,12.95605506,157.8,157.74,22.1875]
[1721321359437,15.46,157.75,157.74,15.8483]
[1721321359640,15.46,157.76,157.74,15.8483]
[1721321359840,6.338,157.78,157.72,6.3402]
[1721321360050,6.3376,157.79,157.73,6.3398]
[1721321360239,6.3376,157.79,157.74,6.3395]
[1721321361342,15.46,157.76,157.73,6.3398]
[1721321361550,15.46,157.76,157.71,15.8515]
[1721321361551,15.46,157.75,157.71,15.8515]
[1721321361746,15.46,157.74,157.71,22.1919]
[1721321363237,15.46,157.74,157.72,6.3402]
[1721321363438,15.46,157.74,157.71,15.8515]
[1721321363862,15.46,157.74,157.71,22.1921]
[1721321365064,15.46,157.73,157.68,15.8543]
[1721321365234,15.46,157.73,157.7,6.3411]
[1721321365433,6.3388,157.76,157.69,6.3415]
[1721321365434,15.46,157.71,157.69,6.3415]
[1721321365640,6.34,157.73,157.66,22.7249]
[1721321365840,6.3405,157.72,157.66,22.7249]
[1721321366046,15.46,157.7,157.66,22.7249]
[1721321366261,6.341,157.71,157.65,22.2008]
[1721321366453,15.46,157.67,157.63,6.3439]
[1721321366630,15.46,157.66,157.63,6.3439]
[1721321366964,15.46,157.65,157.62,15.8609]
[1721321367160,15.46,157.64,157.62,22.2049]
[1721321367533,15.46,157.66,157.61,31.5301]
[1721321367838,15.46,157.68,157.64,22.2015]
[1721321368040,15.46,157.67,157.64,22.2015]
[1721321368351,6.5448,157.7,157.63,6.3438]
[1721321368544,6.3419,157.68,157.62,6.3442]
[1721321369760,51.3424,157.67,157.62,6.3442]
[1721321369931,6.342,157.68,157.62,6.3442]
[1721321370261,6.3423,157.67,157.61,38.2763]
[1721321370435,45.0,157.67,157.61,38.2763]
[1721321370638,106.8618,157.69,157.59,12.7142]
[1721321370842,6.3428,157.66,157.59,6.369]
[1721321371047,6.3432,157.65,157.58,15.8643]
[1721321371246,6.3432,157.65,157.59,6.3452]
[1721321371742,6.3428,157.66,157.6,6.345]
[1721321371945,45.0,157.65,157.6,6.345]
[1721321372141,45.0,157.65,157.58,15.8643]
[1721321372445,6.344,157.63,157.57,15.718]
[1721321372644,6.3436,157.64,157.58,6.3459]
[1721321373052,6.3436,157.64,157.59,6.3455]
[1721321373346,45.0,157.65,157.59,15.8634]
[1721321373655,30.95,157.68,157.62,15.8603]
[1721321373854,45.0,157.67,157.63,6.3436]
[1721321374168,15.0574,157.69,157.62,15.8603]
[1721321374346,15.0574,157.69,157.64,6.3433]
[1721321375247,6.5448,157.7,157.65,6.3429]
[1721321375448,12.886,157.7,157.65,6.3429]
[1721321376154,12.886,157.7,157.64,22.2018]
[1721321376570,6.5448,157.7,157.61,17.13026983]
[1721321376773,6.3423,157.68,157.62,6.344]
[1721321377246,51.3424,157.67,157.61,22.2064]
[1721321377948,6.3429,157.66,157.61,15.8617]
[1721321378977,6.3429,157.66,157.61,22.2063]
[1721321379568,51.3424,157.67,157.61,22.2063]
[1721321379783,6.60866601,157.71,157.63,15.8593]
[1721321379987,30.95,157.73,157.65,6.3431]
[1721321380301,6.3414,157.7,157.63,15.8593]
[1721321380595,6.3414,157.7,157.64,6.3432]
[1721321380894,6.3408,157.71,157.65,6.343]
[1721321381075,6.3412,157.7,157.65,6.343]
[1721321381395,6.3408,157.71,157.66,6.3427]
[1721321381691,6.3403,157.72,157.66,6.3426]
[1721321382261,6.341,157.71,157.65,22.2003]
[1721321382686,6.3411,157.7,157.65,15.8572]
[1721321382890,6.3411,157.7,157.65,17.12568171]
[1721321383095,6.3408,157.71,157.65,23.46858171]
[1721321383272,6.3411,157.7,157.65,22.2001]
[1721321383473,6.3408,157.71,157.66,6.3427]
[1721321383977,30.95,157.74,157.67,6.342]
[1721321384591,6.3403,157.72,157.66,6.3426]
[1721321385095,6.3407,157.71,157.65,22.2002]
[1721321385467,6.3404,157.72,157.65,15.8572]
[1721321385871,6.3404,157.72,157.66,6.3426]
[1721321386501,6.3395,157.74,157.68,6.3416]
[1721321386666,6.3395,157.74,157.68,7.60976589]
[1721321386867,6.3395,157.74,157.69,6.3414]
[1721321387309,6.3391,157.75,157.69,6.3414]
[1721321387613,6.3397,157.74,157.68,6.3418]
[1721321388597,46.7962,157.77,157.67,43.8699]
[1721321388904,6.34,157.73,157.67,43.8699]
[1721321389291,6.3395,157.74,157.68,7.60998304]
[1721321389989,51.3399,157.73,157.67,37.2684]
[1721321390393,51.3399,157.73,157.68,6.3419]
[1721321390808,51.3399,157.73,157.67,37.2686]
[1721321390998,45.0,157.73,157.68,6.3416]
[1721321391302,37.2898,157.74,157.69,6.3414]
[1721321391906,37.2898,157.74,157.68,6.3419]
[1721321392705,37.2898,157.74,157.68,7.61015654]
[1721321392907,37.2898,157.74,157.69,6.3414]
[1721321393079,6.3398,157.74,157.69,6.3414]
[1721321393686,6.3399,157.73,157.68,6.3418]
[1721321394106,6.3396,157.74,157.68,6.3418]
[1721321394308,15.47,157.71,157.68,6.3418]
[1721321394879,15.47,157.7,157.68,6.3418]
[1721321395100,6.3395,157.74,157.69,6.3414]
[1721321395407,15.47,157.71,157.69,6.3414]
[1721321396009,15.47,157.71,157.68,6.3418]
[1721321397283,15.47,157.71,157.69,6.3415]
[1721321400295,15.47,157.7,157.67,30.9264]
[1721321400608,15.47,157.68,157.67,15.0713]
[1721321400805,15.47,157.68,157.64,15.8583]
[1721321401024,15.47,157.68,157.65,6.343]
[1721321401497,15.47,157.68,157.66,15.8562]
[1721321401696,15.47,157.69,157.67,6.3423]
[1721321402485,15.47,157.69,157.66,22.1989]
[1721321402689,15.47,157.69,157.66,15.8562]
[1721321402990,15.47,157.67,157.64,6.3434]
[1721321403404,15.47,157.67,157.65,6.343]
[1721321404009,15.47,157.68,157.66,6.3423]
[1721321405287,15.47,157.69,157.66,6.3423]
[1721321405593,15.47,157.69,157.67,6.3423]
[1721321405796,15.47,157.69,157.66,6.3426]
[1721321406098,6.3396,157.74,157.67,15.8555]
[1721321406697,15.47,157.71,157.68,6.3418]
[1721321407122,15.47,157.71,157.67,22.1977]
[1721321407411,15.47,157.71,157.68,6.3417]
[1721321408696,15.47,157.71,157.67,22.1977]
[1721321409710,15.47,157.71,157.68,6.3419]
[1721321412123,12.94127041,157.77,157.72,6.3402]
[1721321412308,15.47,157.75,157.73,6.3398]
[1721321412516,15.47,157.75,157.71,15.8513]
[1721321412517,6.3382,157.78,157.72,6.3402]
[1721321412826,6.3382,157.78,157.73,6.3398]
[1721321413193,15.47,157.77,157.74,6.3392]
[1721321413399,15.47,157.77,157.74,6.3394]
[1721321413608,15.47,157.77,157.73,22.1889]
[1721321413825,15.47,157.78,157.74,6.3395]
[1721321414935,6.60890675,157.82,157.75,15.8475]
[1721321415095,23.7708074,157.87,157.7,31.7038]
[1721321415297,23.7708074,157.87,157.72,15.9184]
[1721321415495,6.3362,157.83,157.77,6.3382]
[1721321415689,6.3363,157.82,157.77,6.3382]
[1721321416196,15.47,157.8,157.77,6.3382]
[1721321416397,15.47,157.8,157.76,15.8462]
[1721321416797,15.47,157.8,157.76,22.1848]
[1721321417902,15.47,157.79,157.76,15.8462]
[1721321418115,15.47,157.79,157.76,22.1848]
[1721321418317,30.38073231,157.87,157.77,7.60579617]
[1721321418530,6.336,157.83,157.77,7.60579617]
[1721321419307,6.3372,157.8,157.74,6.3393]
[1721321419510,15.8386,157.85,157.73,47.547]
[1721321419701,6.3367,157.81,157.75,6.339]
[1721321420221,6.3367,157.81,157.76,6.3386]
[1721321420629,6.3364,157.82,157.76,6.3386]
[1721321421607,6.3367,157.81,157.76,6.3386]
[1721321422125,6.3374,157.8,157.75,15.8473]
[1721321422302,45.0,157.86,157.76,6.3386]
[1721321422628,6.3368,157.81,157.76,6.3386]
[1721321422923,6.3359,157.83,157.75,15.8475]
[1721321423120,45.0,157.82,157.77,6.3382]
[1721321423331,51.3364,157.82,157.77,6.3382]
[1721321423628,51.3364,157.82,157.76,6.3386]
[1721321423828,6.3374,157.8,157.75,15.8475]
[1721321425034,6.3374,157.8,157.75,22.1866]
[1721321426031,30.9,157.81,157.72,15.9184]
[1721321426232,6.3379,157.78,157.72,22.2586]
[1721321426405,6.3384,157.77,157.72,22.2586]
[1721321426606,6.3384,157.77,157.71,15.8516]
[1721321426607,58.61914282,157.81,157.71,22.1922]
[1721321426934,6.3384,157.77,157.71,22.1922]
[1721321427137,6.338,157.78,157.72,6.3401]
[1721321427304,45.0,157.77,157.71,15.8516]
[1721321427504,6.3391,157.75,157.68,31.1155]